bitfinex-derivatives/quotes_ETHF0:USTF0_20250830
["timestamp","ask_amount","ask_price","bid_price","bid_amount"]
[1756584418249,0.4915,4352.6,4352.5,2.06122798]
[1756584418554,0.4915,4352.6,4352.5,0.23]
[1756584418851,0.4915,4352.6,4352.5,3.06963159]
[1756584420145,3.2078,4353.4,4352.5,3.06963159]
[1756584420343,0.2951,4353.3,4352.6,2.83963159]
[1756584420544,0.4915,4352.7,4352.6,2.83963159]
[1756584420760,0.4915,4352.7,4352.5,0.23]
[1756584421050,0.1964,4352.7,4352.5,2.83963159]
[1756584421251,0.4915,4352.7,4352.6,0.23]
[1756584424048,0.4915,4352.7,4352.3,33.092]
[1756584424256,0.4915,4352.5,4352.4,3.06963159]
[1756584424452,0.4915,4352.0,4351.6,5.26902798]
[1756584424655,3.9459995,4354.8,4350.8,33.086]
[1756584424656,0.4915,4351.7,4351.5,2.83963159]
[1756584424857,0.4915,4351.7,4351.6,0.23]
[1756584428252,0.3109,4352.1,4351.6,4.64358]
[1756584428451,3.709,4352.5,4351.7,2.83963159]
[1756584428856,3.3981,4352.5,4351.8,2.83963159]
[1756584429051,0.3109,4352.3,4351.9,0.23]
[1756584429356,0.1903,4352.4,4351.9,0.23]
[1756584429552,0.3109,4352.3,4352.0,2.83963159]
[1756584429753,3.3981,4352.5,4352.1,2.83963159]
[1756584429949,0.3109,4352.3,4352.2,0.23]
[1756584430354,0.3109,4352.3,4352.2,3.06963159]
[1756584432762,0.5012,4352.9,4352.2,3.06963159]
[1756584432958,0.5012,4352.9,4352.3,2.83963159]
[1756584433164,0.1903,4352.9,4352.3,2.83963159]
[1756584433462,0.3109,4352.9,4352.8,2.83963159]
[1756584433651,0.3109,4352.9,4352.8,3.06963159]
[1756584433854,3.2078,4353.5,4352.8,0.23]
[1756584434051,0.1903,4353.3,4352.9,2.83963159]
[1756584434358,3.2078,4353.5,4352.9,2.83963159]
[1756584434553,0.5012,4353.4,4353.0,2.83963159]
[1756584434756,0.1903,4353.3,4353.1,0.23]
[1756584434956,3.2078,4353.5,4353.1,0.23]
[1756584434957,0.5012,4353.2,4353.1,0.23]
[1756584437954,0.3109,4353.2,4353.1,0.23]
[1756584438159,0.3109,4354.0,4353.1,3.4378]
[1756584438358,3.2078,4354.1,4353.2,2.83963159]
[1756584438758,0.1903,4354.0,4353.3,2.83963159]
[1756584438958,0.3109,4353.8,4353.2,2.83963159]
[1756584439158,0.5012,4353.4,4353.3,2.83963159]
[1756584439358,0.1903,4353.4,4353.1,3.4378]
[1756584439559,0.5012,4353.4,4353.3,2.83963159]
[1756584439759,3.2078,4354.1,4353.3,2.83963159]
[1756584439963,3.2078,4354.1,4353.4,2.83963159]
[1756584440164,0.3109,4354.0,4353.5,0.231]
[1756584440667,0.1903,4353.6,4353.5,0.231]
[1756584440866,0.5012,4353.6,4353.5,0.231]
[1756584441063,0.3109,4353.6,4353.5,3.07063159]
[1756584441461,0.3109,4354.0,4353.5,3.07063159]
[1756584441658,0.3109,4353.8,4353.6,2.83963159]
[1756584441858,3.2078,4354.1,4353.6,2.83963159]
[1756584442063,3.2078,4354.1,4353.5,0.231]
[1756584442064,0.1903,4354.0,4353.7,2.83963159]
[1756584442266,0.5012,4353.9,4353.8,2.83963159]
[1756584442464,3.2078,4354.1,4353.6,2.83963159]
[1756584442664,0.5012,4354.0,4353.6,2.83963159]
[1756584442861,0.1903,4353.9,4353.7,2.83963159]
[1756584443067,0.1903,4353.9,4353.5,0.231]
[1756584443068,0.1903,4353.8,4353.6,2.83963159]
[1756584443368,0.3109,4353.7,4353.6,2.83963159]
[1756584443562,0.3109,4353.7,4353.5,0.231]
[1756584443763,0.3109,4353.7,4353.6,2.83963159]
[1756584443969,3.3981,4354.1,4353.6,2.83963159]
[1756584444267,0.1903,4354.0,4353.7,2.83963159]
[1756584444463,3.2078,4354.1,4353.6,2.83963159]
[1756584444664,0.3109,4354.0,4353.6,2.83963159]
[1756584444862,0.3109,4353.9,4353.7,2.83963159]
[1756584445062,0.3109,4354.5,4353.6,6.04743159]
[1756584445264,0.3109,4354.4,4353.6,6.04743159]
[1756584445472,0.3109,4354.4,4353.7,0.41339]
[1756584445663,0.3109,4354.4,4354.3,2.83963159]
[1756584445865,0.3109,4354.4,4354.3,3.06963159]
[1756584446066,0.3109,4354.4,4354.3,0.23]
[1756584447663,0.5012,4354.4,4354.3,0.23]
[1756584453669,0.1903,4354.2,4354.1,3.2078]
[1756584453872,0.5012,4354.2,4354.1,3.4378]
[1756584455072,0.5012,4354.2,4354.1,3.2078]
[1756584455272,0.5012,4354.2,4354.1,3.4378]
[1756584457571,0.295,4354.1,4353.7,33.085]
[1756584457768,0.295,4354.6,4353.8,3.06963159]
[1756584457970,0.483,4353.9,4353.8,3.06963159]
[1756584458275,0.483,4353.9,4353.8,0.23]
[1756584458774,0.295,4353.8,4353.7,33.085]
[1756584458969,0.295,4353.8,4353.7,33.315]
[1756584459170,0.295,4353.8,4353.7,36.15463159]
[1756584459869,0.483,4353.8,4353.7,0.23]
[1756584460364,0.295,4354.6,4353.7,3.06963159]
[1756584460569,0.295,4354.6,4353.8,2.83963159]
[1756584460766,0.295,4354.6,4353.9,0.23]
[1756584460965,3.2078,4354.7,4353.9,3.06963159]
[1756584461177,0.188,4354.1,4354.0,2.83963159]
[1756584461377,0.483,4354.1,4354.0,3.06963159]
[1756584461779,0.295,4354.1,4354.0,3.06963159]
[1756584465369,0.483,4354.1,4354.0,3.06963159]
[1756584466577,0.483,4354.1,4354.0,2.83963159]
[1756584466774,0.483,4354.1,4354.0,3.06963159]
[1756584469876,0.295,4354.1,4354.0,3.06963159]
[1756584471781,0.483,4354.1,4354.0,3.06963159]
[1756584477790,0.483,4353.7,4353.6,3.2078]
[1756584477980,0.483,4353.7,4353.6,6.27743159]
[1756584478193,0.483,4353.7,4353.6,3.4378]
[1756584478596,0.188,4353.5,4353.4,2.06122798]
[1756584478901,0.188,4353.5,4353.4,0.23]
[1756584479198,0.188,4353.5,4353.4,3.06963159]
[1756584479401,0.483,4353.5,4353.4,3.06963159]
[1756584480802,0.295,4353.5,4353.4,3.06963159]
[1756584482404,0.483,4354.0,4353.4,3.06963159]
[1756584482702,3.2078,4354.2,4353.5,2.83963159]
[1756584482902,0.295,4354.1,4353.5,2.83963159]
[1756584483103,0.295,4354.1,4353.6,3.06963159]
[1756584483303,0.295,4354.1,4353.6,0.23]
[1756584483503,0.483,4353.8,4353.7,2.83963159]
[1756584487706,3.2078,4354.2,4353.7,2.83963159]
[1756584487900,3.4044,4354.2,4353.8,3.06963159]
[1756584488099,3.2078,4354.2,4353.8,0.23]
[1756584488300,0.2898,4354.1,4353.8,0.23]
[1756584488507,0.4864,4354.1,4353.8,0.23]
[1756584490003,0.1966,4353.5,4353.4,5.26902798]
[1756584490202,0.4864,4353.5,4353.4,5.49902798]
[1756584490403,0.4864,4353.5,4353.4,8.33865957]
[1756584491105,0.4864,4353.5,4353.4,8.10865957]
[1756584491306,0.4864,4353.5,4353.4,8.33865957]
[1756584493810,0.2898,4353.5,4353.4,8.33865957]
[1756584496910,0.2898,4353.5,4353.4,5.49902798]
[1756584497098,0.2898,4353.5,4353.4,8.33865957]
[1756584499504,3.2078,4354.2,4353.4,8.33865957]
[1756584499704,3.2078,4354.2,4353.5,2.83963159]
[1756584499904,0.2898,4354.1,4353.6,0.23]
[1756584500104,3.2078,4354.2,4353.6,3.06963159]
[1756584500308,0.4864,4353.8,4353.7,2.83963159]
[1756584500613,0.4864,4353.8,4353.6,0.23]
[1756584500814,0.1966,4353.8,4353.7,2.83963159]
[1756584501308,0.4864,4353.8,4353.7,2.83963159]
[1756584505315,0.1966,4353.8,4353.6,0.23]
[1756584505514,0.4864,4353.8,4353.7,2.83963159]
[1756584506314,0.4864,4353.8,4353.7,3.06963159]
[1756584507815,0.1966,4353.1,4353.0,33.078]
[1756584508016,0.4864,4353.1,4353.0,33.078]
[1756584508206,0.4864,4353.1,4353.0,33.308]
[1756584508408,0.1966,4352.5,4352.4,2.06122798]
[1756584508708,0.1966,4352.2,4352.1,2.83963159]
[1756584509013,0.2898,4352.8,4352.2,2.83963159]
[1756584509208,3.2078,4352.9,4352.3,0.23]
[1756584509413,3.2078,4352.9,4352.4,2.83963159]
[1756584509607,0.2898,4352.8,4352.5,0.231]
[1756584509806,0.2898,4352.8,4352.5,3.07063159]
[1756584510002,3.2078,4352.9,4352.6,2.83963159]
[1756584510204,3.2078,4352.9,4352.7,0.231]
[1756584510413,3.4976,4352.9,4352.7,3.07063159]
[1756584510613,3.4976,4352.9,4352.8,2.83963159]
[1756584510813,3.6942,4352.9,4352.8,2.83963159]
[1756584511014,0.1966,4352.8,4352.1,3.2078]
[1756584511315,0.2898,4352.6,4352.2,3.30038158]
[1756584511517,3.2078,4352.9,4352.3,0.231]
[1756584511712,0.2898,4352.8,4352.3,2.83963159]
[1756584511915,3.2078,4352.9,4352.4,3.07063159]
[1756584512115,0.2898,4352.8,4352.4,0.231]
[1756584512318,0.1966,4352.2,4352.1,3.2078]
[1756584512517,0.4864,4352.2,4352.1,3.4388]
[1756584514216,0.4864,4352.2,4351.6,33.081]
[1756584514217,0.2898,4352.1,4351.6,36.2888]
[1756584514415,0.4864,4351.7,4351.6,36.2888]
[1756584514613,0.4864,4351.7,4351.6,36.5198]
[1756584515219,0.4864,4351.7,4351.6,36.2888]
[1756584515521,0.4864,4351.7,4351.6,36.5198]
[1756584515722,0.4864,4351.7,4351.6,33.081]
[1756584515922,0.4864,4351.7,4351.6,33.312]
[1756584517519,0.4864,4351.7,4351.6,33.081]
[1756584517824,0.3103,4350.8,4350.6,3.2078]
[1756584518022,0.3103,4350.8,4350.7,3.07063159]
[1756584518318,3.2078,4351.9,4350.7,3.07063159]
[1756584518319,0.5138,4351.8,4350.7,3.07063159]
[1756584518515,0.5138,4351.8,4350.8,2.83963159]
[1756584518710,0.5138,4351.8,4350.9,0.231]
[1756584518915,0.5138,4351.8,4351.0,2.83963159]
[1756584519115,0.5138,4351.7,4351.1,0.231]
[1756584519419,0.5138,4351.7,4351.1,3.07063159]
[1756584519624,0.3103,4351.6,4351.2,2.83963159]
[1756584519816,0.3103,4351.6,4351.3,3.07063159]
[1756584520015,0.3103,4351.6,4351.3,0.231]
[1756584520215,0.3103,4351.6,4351.4,2.83963159]
[1756584520411,0.5138,4351.6,4351.5,3.07063159]
[1756584520616,0.2035,4351.6,4351.5,0.231]
[1756584521120,0.5138,4351.6,4351.5,0.231]
[1756584521622,0.5138,4351.6,4350.6,3.2078]
[1756584521623,0.2035,4350.7,4350.6,3.2078]
[1756584521818,0.5138,4350.7,4350.6,3.2078]
[1756584522022,0.3103,4350.6,4350.1,36.2948]
[1756584522222,0.5138,4350.2,4350.1,33.087]
[1756584522422,0.5138,4350.2,4350.1,33.318]
[1756584527423,0.5138,4350.2,4350.1,33.087]
[1756584528121,0.5138,4349.6,4349.5,3.2078]
[1756584528420,0.5138,4349.6,4349.5,3.4388]
[1756584528617,0.5138,4349.6,4349.5,3.07063159]
[1756584528815,0.5138,4349.6,4349.5,0.231]
[1756584532423,0.3103,4350.1,4349.5,10.27843159]
[1756584532622,0.3103,4350.1,4349.6,2.83963159]
[1756584532922,0.2035,4350.1,4349.6,2.83963159]
[1756584533227,0.5138,4349.6,4349.5,3.2078]
[1756584533426,0.3103,4349.6,4349.5,0.231]
[1756584533628,0.3103,4349.6,4349.5,3.07063159]
[1756584534625,0.5138,4350.1,4349.5,3.07063159]
[1756584534823,0.3103,4350.0,4349.6,2.83963159]
[1756584535025,0.3103,4349.8,4349.7,0.231]
[1756584535325,0.3103,4349.8,4349.7,3.07063159]
[1756584536126,0.5138,4349.8,4349.7,3.07063159]
[1756584540130,0.2035,4350.1,4349.7,3.07063159]
[1756584540329,0.3103,4349.9,4349.8,2.83963159]
[1756584540734,0.3103,4349.9,4349.7,0.231]
[1756584541034,0.3103,4349.9,4349.8,2.83963159]
[1756584541532,3.2078,4350.7,4349.7,0.231]
[1756584541533,0.3103,4350.6,4349.7,0.231]
[1756584541728,0.22987001,4350.6,4349.8,2.83963159]
[1756584541937,0.22988,4350.5,4349.9,0.231]
[1756584542135,0.22988,4350.5,4349.9,3.07063159]
[1756584542431,0.5138,4350.0,4349.9,0.231]
[1756584547737,0.5138,4350.0,4349.9,3.07063159]
[1756584550038,0.2035,4350.0,4349.5,3.2078]
[1756584550340,0.4885,4349.7,4349.6,2.83963159]
[1756584550533,0.4885,4349.7,4349.6,3.07063159]
[1756584550734,0.4885,4349.7,4349.6,0.231]
[1756584551833,0.1991,4349.7,4349.6,0.231]
[1756584552438,0.4885,4349.7,4349.6,0.231]
[1756584554136,0.2894,4350.0,4349.6,0.231]
[1756584554338,3.2078,4350.2,4349.7,2.83963159]
[1756584554539,0.4885,4349.9,4349.8,2.83963159]
[1756584554738,0.4885,4349.9,4349.8,0.231]
[1756584557037,0.4885,4349.9,4349.5,3.2078]
[1756584557233,0.1991,4349.9,4349.6,3.07063159]
[1756584557439,0.4885,4349.7,4349.6,3.07063159]
[1756584557739,0.4885,4349.7,4349.6,0.231]
[1756584566949,3.2078,4350.3,4349.6,0.231]
[1756584567240,0.1991,4350.7,4350.2,2.83963159]
[1756584567441,3.2078,4350.8,4350.3,0.231]
[1756584567638,0.4885,4350.4,4349.9,2.06122798]
[1756584567837,0.2894,4350.3,4350.0,3.07063159]
[1756584568039,0.4885,4350.1,4350.0,3.07063159]
[1756584568237,0.4885,4350.1,4350.0,0.231]
[1756584568439,0.4885,4350.1,4350.0,3.07063159]
[1756584571640,0.4885,4350.1,4350.0,6.27843159]
[1756584572144,3.2078,4351.4,4350.0,6.92204159]
[1756584572341,0.2894,4351.1,4350.1,2.83963159]
[1756584572640,0.2894,4351.1,4350.2,0.231]
[1756584572942,0.22985001,4351.0,4350.2,3.07063159]
[1756584573147,0.4885,4350.4,4350.3,2.83963159]
[1756584573548,0.2894,4350.3,4350.2,0.231]
[1756584573943,0.2894,4350.3,4350.2,3.07063159]
[1756584576747,0.2894,4351.3,4350.2,3.07063159]
[1756584576951,0.2894,4351.2,4350.3,2.83963159]
[1756584577145,0.51925001,4351.2,4350.4,0.231]
[1756584577447,0.2969,4351.1,4350.4,3.07063159]
[1756584577645,0.2969,4351.1,4350.5,2.83963159]
[1756584577846,0.5047,4350.7,4350.6,0.231]
[1756584578041,0.5047,4350.7,4350.6,3.07063159]
[1756584578243,0.5047,4350.7,4350.6,0.231]
[1756584580337,7.43765001,4350.7,4349.8,2.06122798]
[1756584580538,0.5047,4349.9,4349.8,0.231]
[1756584581143,0.2078,4348.6,4348.5,8.14480298]
[1756584581349,0.2078,4348.6,4348.0,2.06122798]
[1756584581649,0.5047,4348.2,4348.1,0.231]
[1756584609058,0.1149,4348.4,4348.3,0.4148]
[1756584609255,0.1149,4348.4,4348.3,3.6226]
[1756584609659,0.1149,4348.4,4348.3,3.85257]
[1756584609858,0.1149,4348.4,4348.3,3.6226]
[1756584610266,0.1149,4348.4,4348.3,5.68382798]
[1756584611168,0.1149,4348.4,4348.3,3.6226]
[1756584614970,0.1149,4348.4,4348.3,3.8536]
[1756584616471,0.1149,4348.4,4348.3,5.9129322]
[1756584617867,0.398,4348.4,4348.3,5.9129322]
[1756584618067,0.398,4348.4,4348.3,5.2680322]
[1756584618068,0.6042,4348.4,4348.3,5.2680322]
[1756584618267,4.6042,4348.4,4348.3,5.4981322]
[1756584618469,4.6042,4348.4,4348.3,3.4388]
[1756584618973,4.4893,4348.4,4348.3,3.4388]
[1756584625073,4.4893,4348.4,4348.3,0.231]
[1756584630976,0.4893,4348.4,4347.3,33.28772696]
[1756584631282,0.4893,4347.5,4347.4,3.07063159]
[1756584631482,0.4893,4347.5,4347.4,0.231]
[1756584631781,0.2831,4347.4,4347.3,33.107]
[1756584632184,0.2062,4346.8,4346.5,2.0593322]
[1756584632476,3.209,4346.6,4345.3,0.2330561]
[1756584632671,0.0012,4345.4,4345.3,0.2330561]
[1756584632876,0.19876464,4345.4,4344.6,0.3038]
[1756584633075,3.2078,4344.8,4344.7,0.1928]
[1756584633384,3.40656464,4344.8,4344.7,0.4966]
[1756584633581,3.40656464,4344.8,4344.3,0.149]
[1756584633784,0.0012,4344.5,4344.4,0.3038]
[1756584634083,0.0012,4344.5,4344.4,0.4966]
[1756584634283,0.19876464,4344.5,4344.4,0.4966]
[1756584635381,0.0012,4344.5,4344.4,0.4966]
[1756584637383,0.0038,4344.5,4344.4,0.4966]
[1756584640186,0.0053,4344.3,4344.2,0.2921]
[1756584640389,3.2164,4344.3,4344.2,0.4869]
[1756584649213,0.115,4345.3,4345.2,0.1948]
[1756584649410,3.2078,4345.5,4345.4,0.1948]
[1756584649610,3.2078,4345.5,4345.4,0.4869]
[1756584652912,3.2131,4345.5,4345.4,0.4869]
[1756584653413,3.40274154,4345.5,4345.4,0.4869]
[1756584653906,3.39744154,4345.5,4345.4,3.21153159]
[1756584655012,3.2078,4345.5,4345.4,3.21153159]
[1756584655414,3.39764751,4345.5,4345.4,3.21153159]
[1756584657112,3.2078,4345.5,4345.4,3.21153159]
[1756584657710,3.2078,4345.5,4345.4,3.44453159]
[1756584658810,0.0053,4345.6,4345.5,0.2921]
[1756584659009,0.0086,4345.6,4345.5,3.21153159]
[1756584660308,3.2111,4346.0,4345.9,0.1948]
[1756584660610,3.2078,4346.0,4345.9,3.26546655]
[1756584661518,0.1824,4345.9,4345.3,0.233]
[1756584661822,0.1918,4345.5,4345.4,3.21153159]
[1756584662116,0.3742,4345.5,4345.4,3.21153159]
[1756584662318,0.994101,4345.5,4345.4,0.4869]
[1756584662919,0.994101,4345.5,4345.3,0.233]
[1756584662920,0.811701,4345.5,4345.3,0.5251]
[1756584663124,0.994101,4345.4,4345.3,0.5251]
[1756584664417,0.994101,4345.4,4345.3,0.7199]
[1756584666621,4.201901,4345.4,4345.3,0.7199]
[1756584667625,4.201901,4345.4,4345.3,0.233]
[1756584668721,4.201901,4345.4,4345.3,0.5407]
[1756584668916,4.201901,4345.4,4345.3,0.7339]
[1756584671624,3.582,4345.4,4345.3,0.7339]
[1756584671824,4.20188866,4345.4,4345.3,0.7339]
[1756584672215,3.582,4345.4,4345.3,0.7339]
[1756584675831,3.582,4345.4,4345.3,0.233]
[1756584676934,3.582,4345.4,4345.3,0.5407]
[1756584677532,3.582,4345.4,4345.3,0.233]
[1756584677733,3.582,4345.4,4345.3,0.7339]
[1756584678229,4.20356263,4345.4,4345.3,0.7339]
[1756584679229,3.582,4345.4,4345.3,0.7339]
[1756584681334,3.582,4345.4,4345.3,0.233]
[1756584681834,0.1815,4345.3,4344.5,36.3558]
[1756584682037,0.3894,4344.6,4344.5,36.3558]
[1756584682337,0.3894,4344.9,4344.8,0.1932]
[1756584682537,0.3894,4344.9,4344.8,0.5009]
[1756584684132,3.2078,4345.4,4344.8,0.1932]
[1756584684432,0.3894,4345.3,4345.2,0.5009]
[1756584695245,0.3894,4345.3,4344.5,3.2078]
[1756584695246,0.2079,4344.6,4344.5,0.3077]
[1756584695445,0.3894,4344.6,4344.5,0.3077]
[1756584695747,0.1815,4344.5,4344.2,0.3077]
[1756584695940,0.1815,4344.5,4343.8,0.3077]
[1756584695941,3.5972,4344.3,4343.8,0.3077]
[1756584697242,0.1817,4344.2,4342.8,0.2923]
[1756584697448,0.3767,4343.1,4343.0,0.4845]
[1756584697642,0.1817,4343.4,4343.1,0.2923]
[1756584697848,0.3767,4343.4,4343.3,0.4845]
[1756584698042,3.2078,4343.8,4343.6,0.1922]
[1756584698236,3.5845,4343.8,4343.7,0.4845]
[1756584698941,3.5845,4343.8,4343.7,0.2923]
[1756584699141,3.5845,4343.8,4342.9,0.233]
[1756584699142,0.3767,4343.7,4343.6,0.4845]
[1756584700447,0.1817,4343.6,4343.0,0.2923]
[1756584700642,3.2078,4343.8,4343.1,0.2923]
[1756584700947,0.195,4343.3,4343.2,0.4845]
[1756584701344,0.1817,4343.5,4343.3,0.2923]
[1756584701552,0.1817,4343.5,4343.4,0.1922]
[1756584701745,0.1817,4343.5,4343.4,3.20913159]
[1756584702550,0.1817,4343.7,4343.4,2.91683159]
[1756584702844,0.3767,4343.7,4343.6,0.4845]
[1756584710860,0.195,4343.7,4343.6,0.4845]
[1756584711153,3.2078,4343.8,4343.7,0.4845]
[1756584711357,3.3895,4343.8,4343.7,0.4845]
[1756584711560,3.5845,4343.8,4343.7,0.4845]
[1756584714048,3.5845,4343.8,4343.7,0.2923]
[1756584715851,3.2078,4343.8,4342.8,0.2923]
[1756584716158,0.3767,4343.0,4342.9,2.72463159]
[1756584716857,0.3767,4343.0,4342.9,3.01693159]
[1756584717855,0.3767,4343.0,4342.9,0.2923]
[1756584718558,0.1817,4342.9,4342.3,0.232]
[1756584718759,3.5845,4342.6,4342.5,0.4845]
[1756584719658,3.5845,4342.6,4342.5,0.2923]
[1756584720259,3.5845,4342.6,4342.2,0.232]
[1756584720563,0.3767,4342.4,4342.3,3.20913159]
[1756584720760,0.3767,4342.4,4341.5,0.18646259]
[1756584720959,0.3767,4341.7,4341.6,3.20913159]
[1756584721255,3.5845,4341.7,4341.6,0.4845]
[1756584724268,3.4028,4341.7,4340.8,0.2923]
[1756584724463,3.5845,4341.1,4341.0,0.4845]
[1756584724660,3.4028,4341.1,4341.0,0.4845]
[1756584724862,3.2078,4341.1,4341.0,3.20913159]
[1756584725060,3.5845,4341.7,4341.6,0.4845]
[1756584725361,3.5845,4341.7,4341.6,0.2923]
[1756584725557,3.5845,4341.7,4341.6,0.4845]
[1756584727367,0.2084,4341.1,4341.0,0.4818]
[1756584727567,0.3902,4341.1,4341.0,3.43678159]
[1756584727763,0.3902,4341.1,4341.0,3.19793159]
[1756584728662,3.2078,4341.7,4341.1,0.2838]
[1756584728863,0.3902,4341.3,4341.2,0.4733]
[1756584730863,3.2078,4341.7,4341.6,0.1895]
[1756584731064,3.2078,4342.2,4341.9,0.2838]
[1756584731374,3.2078,4342.2,4342.1,0.4733]
[1756584731572,3.2078,4342.2,4342.1,3.19793159]
[1756584731869,3.2078,4342.2,4342.1,0.4733]
[1756584732169,3.2078,4342.2,4342.1,4.4733]
[1756584733968,3.2078,4342.7,4342.1,4.4733]
[1756584734169,3.2078,4342.7,4342.6,0.4733]
[1756584734370,3.2078,4342.7,4342.6,3.43193159]
[1756584734568,3.2078,4342.7,4342.6,0.7073]
[1756584734875,3.7256,4342.7,4342.6,0.7073]
[1756584735175,3.2078,4342.7,4342.6,0.7073]
[1756584735972,3.2078,4343.3,4342.7,0.2838]
[1756584736173,3.7256,4343.3,4343.2,0.4733]
[1756584736574,3.7256,4343.3,4343.2,3.19793159]
[1756584747279,3.4162,4343.3,4343.2,3.19793159]
[1756584747485,3.7256,4343.8,4343.7,0.1895]
[1756584748283,3.7256,4343.8,4343.5,0.5168]
[1756584748284,3.4162,4343.8,4343.5,0.5168]
[1756584748484,0.5178,4343.6,4343.5,0.233]
[1756584749879,0.5178,4343.6,4343.1,0.233]
[1756584750184,0.5178,4343.1,4343.0,0.082]
[1756584750381,0.5178,4343.1,4342.9,0.233]
[1756584750890,0.5178,4343.1,4343.0,2.72463159]
[1756584751178,0.5178,4343.1,4343.0,3.19793159]
[1756584761687,0.5178,4343.1,4343.0,0.4733]
[1756584762693,0.5178,4343.1,4342.1,3.8061227]
[1756584762694,0.2883,4343.0,4342.2,0.3065]
[1756584762886,0.4876,4342.4,4342.3,0.7469]
[1756584763088,0.4876,4342.4,4342.3,3.47153159]
[1756584763298,0.4876,4342.4,4342.3,0.7469]
[1756584765490,3.4961,4342.7,4342.3,0.7469]
[1756584765697,3.4071,4342.7,4342.6,0.2074]
[1756584765889,3.2078,4342.7,4342.6,0.5139]
[1756584766092,3.2078,4342.7,4342.6,0.7469]
[1756584766994,3.6954,4342.7,4342.6,0.7469]
[1756584769400,0.4876,4342.7,4342.6,0.7469]
[1756584770102,0.1993,4342.7,4342.6,0.7469]
[1756584772191,3.2078,4343.2,4342.6,0.4404]
[1756584772392,0.2883,4343.4,4343.2,0.3065]
[1756584772699,0.4876,4343.4,4343.3,0.5139]
[1756584773190,0.1993,4343.4,4343.3,0.5139]
[1756584778901,0.4876,4343.4,4343.3,0.5139]
[1756584780308,3.2078,4344.3,4343.6,0.5139]
[1756584780505,0.62189782,4344.2,4344.1,0.2074]
[1756584780704,3.2078,4344.8,4344.2,2.72463159]
[1756584781007,0.2883,4345.4,4344.8,0.3065]
[1756584781213,3.2078,4344.9,4344.3,2.72463159]
[1756584781398,0.1993,4345.0,4344.9,0.5139]
[1756584781600,0.4876,4345.0,4344.9,0.5139]
[1756584781905,3.6954,4345.0,4344.9,3.23853159]
[1756584782704,0.4876,4345.0,4344.9,3.23853159]
[1756584783302,0.2883,4345.4,4345.0,0.3065]
[1756584783506,0.4876,4345.4,4345.3,0.2074]
[1756584783707,0.4876,4345.4,4345.3,0.5139]
[1756584793422,0.2894,4346.1,4345.4,0.2823]
[1756584793619,0.1888,4345.5,4345.4,0.484]
[1756584793820,0.4782,4345.5,4345.4,0.484]
[1756584794019,0.4782,4345.5,4345.4,3.20863159]
[1756584800620,0.4782,4345.5,4345.4,0.484]
[1756584800827,0.4782,4345.5,4345.4,3.20863159]
[1756584801026,0.1888,4345.5,4345.4,3.20863159]
[1756584801428,0.2894,4345.7,4345.4,3.20863159]
[1756584801623,0.2894,4345.7,4345.6,0.484]
[1756584801624,0.4782,4345.7,4345.6,0.484]
[1756584806423,0.2894,4346.3,4345.7,0.2823]
[1756584806628,0.4782,4345.8,4345.7,0.484]
[1756584808030,0.4782,4345.8,4345.5,0.233]
[1756584808331,0.233,4346.7,4345.6,2.72463159]
[1756584808332,3.686,4345.7,4345.6,2.72463159]
[1756584808734,3.686,4345.7,4345.6,0.484]
[1756584808924,0.4782,4345.7,4345.6,0.484]
[1756584809130,3.686,4345.7,4345.6,0.484]
[1756584809627,0.4782,4345.7,4345.6,0.484]
[1756584816234,0.1888,4345.2,4344.9,0.2823]
[1756584816436,0.1888,4345.0,4344.9,3.00693159]
[1756584816743,0.4782,4345.0,4344.9,3.20863159]
[1756584827842,3.2078,4345.7,4344.9,0.484]
[1756584828036,0.4959,4345.5,4345.4,0.1962]
[1756584828236,0.4959,4345.5,4345.4,0.4989]
[1756584828432,0.3013,4346.1,4345.7,0.1962]
[1756584828741,3.4024,4346.2,4346.1,0.4989]
[1756584828940,4.02470951,4346.2,4346.1,0.27450079]
[1756584829139,4.32600951,4346.2,4346.1,0.27450079]
[1756584829440,1.11820951,4346.2,4346.1,0.47070079]
[1756584829842,4.32600951,4346.2,4346.1,0.47070079]
[1756584830041,1.11820951,4346.2,4346.1,0.47070079]
[1756584830542,4.32600951,4346.2,4346.1,0.47070079]
[1756584835042,4.32600951,4346.2,4345.8,0.3027]
[1756584835243,0.1946,4345.8,4345.7,0.6049]
[1756584835545,0.4959,4345.8,4345.7,0.6049]
[1756584838747,0.4959,4345.8,4345.7,0.4087]
[1756584839549,0.4959,4345.8,4345.7,0.3027]
[1756584839849,0.4959,4345.8,4345.7,0.4989]
[1756584847357,0.4959,4345.8,4345.7,3.22353159]
[1756584848451,0.2986,4346.1,4345.7,2.92083159]
[1756584848652,3.7037,4346.2,4346.1,0.4956]
[1756584848848,4.32591549,4346.2,4346.1,0.4956]
[1756584853374,4.32591549,4346.2,4346.1,0.27120187]
[1756584854068,4.32591549,4346.2,4345.1,0.232]
[1756584854268,0.4959,4346.0,4345.9,0.1994]
[1756584854468,1.11806705,4346.0,4345.9,0.1994]
[1756584854771,0.1973,4345.1,4345.0,0.232]
[1756584854986,3.7037,4345.1,4345.0,0.232]
[1756584855176,3.7037,4345.1,4345.0,2.95663159]
[1756584855678,3.7037,4345.1,4345.0,3.45223159]
[1756584859684,3.7037,4345.1,4345.0,2.95663159]
[1756584860677,3.7037,4345.1,4345.0,0.232]
[1756584860883,3.7037,4345.1,4345.0,2.95663159]
[1756584861481,3.7037,4345.1,4345.0,2.72463159]
[1756584864278,3.7037,4345.1,4345.0,3.02083159]